bitfinex/quotes_ETHUSD_20241217
["timestamp","ask_amount","ask_price","bid_price","bid_amount"]
[1734404853805,0.55,4018.8,4017.1,0.338732]
[1734404853806,2.48836,4018.7,4017.6,0.8113]
[1734404854002,2.48869,4018.2,4017.6,0.8113]
[1734404854437,2.48869,4018.2,4017.7,0.07220833]
[1734404854659,2.48869,4018.2,4017.6,0.8113]
[1734404854958,2.48876,4018.1,4017.6,0.8113]
[1734404855313,2.08825027,4018.2,4017.6,0.8113]
[1734404856147,2.48887,4017.9,4017.6,0.8113]
[1734404856657,0.4554,4018.1,4017.1,0.8113]
[1734404856860,2.48873,4018.1,4017.1,0.8113]
[1734404857063,2.48873,4018.1,4017.2,0.07219545]
[1734404857361,2.48873,4018.1,4017.1,0.8113]
[1734404857565,2.48882,4018.0,4017.1,0.8113]
[1734404857768,4.57695027,4018.2,4017.2,0.07219545]
[1734404857972,2.48874,4018.1,4017.1,1.14773973]
[1734404858137,2.08825027,4018.2,4017.3,0.07220946]
[1734404858462,2.48837,4018.7,4017.5,0.8113]
[1734404858645,2.48837,4018.7,4017.6,0.33643973]
[1734404858963,2.48831,4018.8,4017.7,0.8113]
[1734404859127,2.08825027,4019.0,4017.7,0.88347495]
[1734404859322,0.28638584,4018.9,4017.7,0.88347495]
[1734404859723,0.55,4018.8,4017.7,0.88347495]
[1734404860367,0.55,4018.8,4017.7,0.8113]
[1734404860548,0.55,4018.8,4017.8,0.0721699]
[1734404860777,0.55,4018.8,4017.7,0.8113]
[1734404861051,0.55,4018.8,4017.9,0.07216486]
[1734404861367,0.55,4018.8,4017.7,0.8113]
[1734404861580,0.55,4018.8,4018.0,0.07215981]
[1734404861722,0.56640985,4018.8,4017.7,0.8113]
[1734404861930,0.56640985,4018.8,4018.1,0.07215477]
[1734404862141,0.56640985,4018.8,4017.7,0.8113]
[1734404862142,0.55,4018.8,4017.7,0.8113]
[1734404862438,0.56640985,4018.8,4018.2,0.07214973]
[1734404862654,0.55,4018.8,4017.7,0.8113]
[1734404862867,0.01640985,4018.9,4017.7,0.8113]
[1734404863038,0.01640985,4018.9,4017.8,0.0721699]
[1734404863260,0.1640211,4019.3,4017.9,0.83617658]
[1734404863437,0.01640985,4019.2,4018.1,0.8113]
[1734404863643,0.1640211,4019.3,4018.1,0.8113]
[1734404863987,0.1640211,4019.3,4018.0,3.55991547]
[1734404863988,0.01640985,4019.2,4018.2,0.88364988]
[1734404864151,0.1640211,4019.3,4018.2,0.88364988]
[1734404864540,2.48813,4019.1,4018.2,0.88364988]
[1734404864735,0.01640985,4019.2,4018.2,0.88364988]
[1734404864736,2.48819,4019.0,4018.2,0.88364988]
[1734404864939,0.27240812,4019.1,4018.2,0.88364988]
[1734404865140,0.27240812,4019.1,4018.2,0.8113]
[1734404865540,2.25227137,4019.3,4018.2,0.8113]
[1734404865740,0.01640985,4019.2,4018.2,0.8113]
[1734404865937,2.25227137,4019.3,4018.2,0.8113]
[1734404866142,0.01640985,4019.2,4018.2,0.8113]
[1734404866391,0.1640211,4019.3,4018.4,0.7921]
[1734404866545,0.18043095,4019.3,4018.4,0.7921]
[1734404867150,0.1640211,4019.3,4018.4,0.7921]
[1734404867375,0.18043095,4019.3,4018.4,0.7921]
[1734404868295,0.1640211,4019.3,4018.4,0.7921]
[1734404868449,2.50446985,4019.2,4018.4,0.7921]
[1734404869084,0.01640985,4019.2,4018.4,0.7921]
[1734404869286,0.47640319,4019.3,4018.4,0.7921]
[1734404870503,0.1640211,4019.3,4018.4,0.7921]
[1734404871587,0.01640985,4019.2,4018.4,0.7921]
[1734404871907,0.55,4019.0,4018.4,0.7921]
[1734404872071,0.55,4019.2,4018.4,0.7921]
[1734404872276,1.08067212,4019.2,4018.4,0.7921]
[1734404873349,3.56873212,4019.2,4018.4,0.7921]
[1734404873511,0.1640211,4019.3,4018.4,0.7921]
[1734404874110,2.6520211,4019.3,4018.4,0.7921]
[1734404874413,0.01640985,4019.2,4018.4,0.7921]
[1734404875089,2.6520211,4019.3,4018.4,0.7921]
[1734404875260,0.1640211,4019.3,4018.4,0.7921]
[1734404875689,0.18043095,4019.3,4018.4,0.7921]
[1734404875870,2.48818,4019.0,4018.4,0.7921]
[1734404876276,2.50458985,4019.0,4018.4,0.7921]
[1734404876900,2.08825027,4018.9,4018.4,0.7921]
[1734404877134,2.48837,4018.7,4018.4,0.7921]
[1734404877340,0.01640985,4018.6,4017.2,3.33643973]
[1734404877638,2.08825027,4018.9,4018.1,0.7771]
[1734404877639,2.48849,4018.5,4018.1,0.7771]
[1734404878092,2.08825027,4018.5,4017.2,0.33643973]
[1734404878433,2.48881,4018.0,4017.3,0.84799246]
[1734404879143,2.08825027,4018.1,4017.3,0.7771]
[1734404880221,2.48887,4017.9,4017.3,0.7771]
[1734404880424,2.48894,4017.8,4017.3,0.7771]
[1734404880624,0.01640985,4017.7,4017.3,0.7771]
[1734404880839,2.489,4017.7,4017.3,0.7771]
[1734404881842,2.08825027,4017.7,4017.3,0.7771]
[1734404882308,2.48907,4017.6,4017.3,0.7771]
[1734404882823,2.48907,4017.6,4016.3,0.33643973]
[1734404882824,0.01640985,4017.5,4016.4,0.7848]
[1734404882997,3.03933,4017.2,4016.4,0.7848]
[1734404883198,2.08825027,4016.9,4016.4,0.7848]
[1734404883595,2.48954,4016.8,4016.4,0.7848]
[1734404884000,0.01640985,4016.7,4016.4,0.7848]
[1734404884249,2.50600985,4016.7,4016.4,0.7848]
[1734404884960,2.08825027,4016.9,4016.4,0.7848]
[1734404886517,0.55,4017.2,4016.4,0.7848]
[1734404886883,2.08825027,4017.7,4016.6,0.7848]
[1734404887022,4.57724027,4017.7,4016.6,0.7848]
[1734404887224,4.57724027,4017.7,4016.7,0.06920801]
[1734404887536,2.08825027,4017.7,4016.8,0.06920297]
[1734404887734,2.54881178,4017.7,4016.6,0.7848]
[1734404888157,0.55,4017.6,4016.6,0.7848]
[1734404888732,0.55,4017.6,4016.7,0.07005694]
[1734404888934,0.55,4017.6,4016.6,0.7848]
[1734404889237,2.08825027,4017.3,4016.6,0.7848]
[1734404891448,0.55,4017.5,4016.6,0.7848]
[1734404892560,3.03911,4017.5,4016.6,0.7848]
[1734404892761,0.55,4017.5,4016.6,0.7848]
[1734404893068,2.08825027,4017.6,4016.6,0.7848]
[1734404893378,2.08825027,4017.6,4016.7,0.7848]
[1734404893545,2.08825027,4017.6,4016.8,0.06991726]
[1734404893744,2.08825027,4017.6,4016.9,0.7848]
[1734404893933,2.08825027,4017.6,4017.0,0.06990716]
[1734404896278,0.02856483,4018.0,4017.1,0.8168]
[1734404896279,0.01215498,4018.0,4017.1,0.8168]
[1734404896834,0.01215498,4018.0,4017.2,0.069866]
[1734404897034,0.01215498,4018.0,4016.6,0.33643973]
[1734404897256,0.01215498,4018.0,4016.7,0.8168]
[1734404897441,0.01215498,4018.0,4016.8,0.4856369]
[1734404897650,0.01215498,4018.0,4016.9,0.8168]
[1734404898070,0.01215498,4018.0,4017.1,0.8168]
[1734404898477,0.01215498,4018.0,4017.3,0.7671]
[1734404898684,0.01640985,4017.9,4017.3,0.7671]
[1734404900458,3.05530985,4017.9,4017.3,0.7671]
[1734404900983,3.0389,4017.9,4017.3,0.7671]
[1734404901361,0.01640985,4017.8,4017.3,0.7671]
[1734404901577,2.48894,4017.8,4017.3,0.7671]
[1734404901958,2.48894,4017.8,4017.4,0.06984258]
[1734404902155,2.08825027,4017.7,4017.3,0.7671]
[1734404902495,2.08825027,4017.7,4017.4,0.06984258]
[1734404902799,2.48922,4017.4,4017.0,0.7671]
[1734404903082,0.56640985,4017.6,4015.5,1.03244162]
[1734404903083,2.08825027,4017.1,4016.2,0.7671]
[1734404903457,2.08825027,4017.1,4016.3,0.37671]
[1734404903657,2.08825027,4017.1,4016.3,0.44660811]
[1734404903894,2.08825027,4017.1,4016.4,0.7671]
[1734404904354,2.08825027,4017.1,4016.5,0.06988801]
[1734404904957,2.08825027,4017.1,4016.6,0.7671]
[1734404905155,2.08825027,4017.1,4016.7,0.06987791]
[1734404906892,2.08825027,4017.1,4016.6,0.7671]
[1734404907551,0.01640985,4017.0,4016.6,0.7671]
[1734404908547,0.01640985,4017.0,4016.7,0.07004361]
[1734404908785,0.01640985,4017.0,4016.6,0.7671]
[1734404909559,4.57762027,4017.1,4016.6,0.7671]
[1734404909560,2.48953,4016.9,4016.6,0.7671]
[1734404910350,4.57785027,4016.7,4016.2,0.7768]
[1734404911577,2.48966,4016.6,4016.2,0.7768]
[1734404912021,2.08825027,4016.7,4016.2,0.7768]
[1734404912246,0.55,4016.9,4016.2,1.11323973]
[1734404914045,0.55,4016.9,4016.2,0.7768]
[1734404914182,0.01640985,4016.8,4016.2,0.7768]
[1734404914503,0.01640985,4016.8,4016.3,0.07021398]
[1734404914684,2.50600985,4016.8,4016.3,0.07021398]
[1734404914884,2.50600985,4016.8,4016.2,0.7768]
[1734404915808,0.55,4016.9,4016.2,0.7768]
[1734404916021,2.4896,4016.7,4016.2,0.7768]
[1734404918282,0.55,4016.9,4016.2,0.7768]
[1734404918481,3.03948,4016.9,4016.2,0.7768]
[1734404918894,0.55,4016.9,4016.2,0.7768]
[1734404919090,0.55,4016.7,4016.2,0.7768]
[1734404919510,0.55,4016.8,4016.2,0.7768]
[1734404919699,2.48961,4016.7,4016.2,0.7768]
[1734404921523,2.48979,4016.4,4016.2,0.7768]
[1734404921709,2.96400388,4016.4,4015.3,0.8147]
[1734404921910,2.50619985,4016.4,4015.3,1.15113973]
[1734404922222,0.01640985,4016.4,4015.5,0.8147]
[1734404922423,4.57792027,4016.6,4015.6,0.06832083]
[1734404923160,2.50617985,4016.5,4015.7,0.8147]
[1734404923311,2.48981,4016.4,4015.7,0.8147]
[1734404923506,2.08825027,4016.2,4015.8,0.06837282]
[1734404923738,0.01640985,4016.1,4015.8,0.06837282]
[1734404923951,0.01640985,4016.1,4015.7,0.8147]
[1734404924126,2.50638985,4016.1,4015.7,0.8147]
[1734404924312,2.48998,4016.1,4015.1,0.8147]
[1734404924510,2.48998,4016.1,4015.2,0.4854269]
[1734404924738,0.55,4016.1,4015.2,0.55162431]
[1734404925261,2.08825027,4016.2,4015.3,0.8147]
[1734404925429,0.55,4016.5,4015.4,0.8147]
[1734404925761,2.08825027,4016.6,4015.6,0.8147]
[1734404926110,2.08825027,4016.6,4015.7,0.06684999]
[1734404927557,2.08825027,4016.6,4015.7,0.23957273]
[1734404927722,2.10466012,4016.6,4015.7,0.23957273]
[1734404927933,2.10466012,4016.6,4015.7,0.17272274]
[1734404927934,4.59433012,4016.6,4015.7,0.17272274]
[1734404929716,4.57792027,4016.6,4015.7,0.17272274]
[1734404930145,4.57792027,4016.6,4015.8,0.06684494]
[1734404930454,4.57792027,4016.6,4015.7,0.17272274]
[1734404931532,0.01215498,4016.2,4015.7,0.17272274]
[1734404931744,0.01215498,4016.2,4015.8,0.13261547]
[1734404934662,0.01215498,4016.2,4015.9,0.8082]
[1734404935262,0.01215498,4016.2,4016.0,0.06679264]
[1734404935762,2.10040525,4016.2,4016.0,0.06679264]
[1734404935969,2.50637985,4016.1,4016.0,0.06679264]
[1734404936169,2.50637985,4016.1,4015.5,0.8082]
[1734404936170,3.01259836,4016.1,4015.5,0.8082]
[1734404937161,2.48997,4016.1,4015.5,0.8082]
[1734404938630,2.08825027,4015.8,4015.5,0.8082]
[1734404938832,2.08825027,4015.8,4014.6,0.33643973]
[1734404938833,0.01640985,4015.7,4015.1,0.8082]
[1734404939030,0.01640985,4015.7,4015.2,0.06690294]
[1734404939375,0.01640985,4015.7,4015.3,0.06466779]
[1734404939581,0.21046601,4015.7,4015.3,0.06466779]
[1734404939726,0.21046601,4015.7,4015.1,0.04839294]
[1734404939927,2.08825027,4015.8,4015.1,0.04839294]
[1734404940181,2.08825027,4015.8,4015.2,0.33643973]
[1734404941029,0.55,4015.9,4015.2,0.33643973]
[1734404941230,2.10040525,4016.2,4015.3,0.338732]
[1734404941461,2.10040525,4016.2,4015.4,0.33643973]
[1734404942232,2.10040525,4016.2,4015.5,0.88762497]
[1734404942455,2.10040525,4016.2,4015.5,1.38034437]
[1734404947261,0.01640985,4016.1,4015.5,0.88762497]
[1734404947457,2.49004,4016.0,4015.5,0.88762497]
[1734404947814,2.08825027,4015.8,4015.1,0.8229]
[1734404948103,0.96379113,4015.3,4015.1,0.8229]
[1734404949003,0.96379113,4015.3,4015.2,0.06462626]
[1734404949204,0.96379113,4015.3,4015.1,0.8229]
[1734404950107,2.08831116,4015.6,4015.1,0.8229]
[1734404950259,0.01640985,4015.5,4015.1,0.8229]
[1734404950461,0.01640985,4015.5,4015.2,0.06288584]
[1734404950702,2.08831116,4015.3,4014.8,0.7967]
[1734404950909,2.08831116,4014.9,4014.1,0.7967]
[1734404951115,0.01640985,4014.8,4014.1,0.7967]
[1734404951407,0.01640985,4014.8,4014.2,0.06306225]
[1734404951610,2.37672326,4015.3,4014.2,0.39950198]
[1734404951788,0.66843195,4015.2,4014.3,0.7967]
[1734404951962,0.66843195,4015.2,4013.8,1.03244162]
[1734404951963,0.66843195,4015.2,4014.4,0.39949187]
[1734404952297,2.37672326,4015.3,4014.5,0.7967]
[1734404952509,2.37672326,4015.3,4014.5,1.13313973]
[1734404952707,2.37672326,4015.3,4014.6,0.06304204]
[1734404953018,2.37672326,4015.3,4014.6,0.33643973]
[1734404953186,2.37672326,4015.3,4014.7,0.06303698]
[1734404953382,0.50311718,4015.2,4014.5,0.7967]
[1734404953583,0.01640985,4015.2,4014.6,0.06304204]
[1734404953824,0.01640985,4015.2,4014.5,0.7967]
[1734404954024,2.50693985,4015.2,4014.6,0.06304204]
[1734404954311,2.50693985,4015.2,4014.5,0.7967]
[1734404954312,0.79580985,4015.2,4014.5,0.7967]
[1734404954668,0.79580985,4015.2,4014.6,0.06304204]
[1734404954914,0.56630331,4015.2,4014.6,0.06304204]
[1734404955116,0.56630331,4015.2,4014.5,0.7967]
[1734404956789,2.08831116,4015.3,4014.5,0.7967]
[1734404957294,2.08831116,4015.3,4014.7,0.7992]
[1734404957499,2.08831116,4015.7,4014.8,0.7992]
[1734404957704,0.31261375,4015.6,4014.8,1.19863349]
[1734404957873,2.08831116,4015.7,4014.8,0.7992]
[1734404958888,2.08831116,4015.7,4014.9,0.7992]
[1734404959086,2.08831116,4015.7,4015.0,0.7992]
[1734404959274,2.08831116,4015.7,4015.0,0.86249753]
[1734404959469,2.08831116,4015.7,4015.0,0.7992]
[1734404959893,2.08831116,4015.7,4015.1,0.06329248]
[1734404961582,2.08831116,4015.7,4015.2,0.7992]
[1734404961890,2.08831116,4016.1,4015.3,0.40226261]
[1734404962206,4.04643943,4016.6,4015.3,0.40226261]
[1734404962207,2.08831116,4016.6,4015.4,0.7992]
[1734404962377,2.08831116,4016.6,4015.5,0.88588633]
[1734404962577,2.08831116,4016.6,4015.6,0.7992]
[1734404962825,2.08831116,4016.6,4015.7,0.73842354]
[1734404963123,4.04601943,4017.3,4015.7,0.73842354]
[1734404963124,2.08831116,4017.0,4015.8,0.7992]
[1734404963325,2.08831116,4017.0,4016.0,0.7992]
[1734404963474,2.08831116,4017.0,4016.1,0.67517173]
[1734404963678,2.08831116,4017.0,4016.2,0.86222847]
[1734404963989,2.08831116,4017.0,4016.4,0.7992]
[1734404964175,2.08831116,4017.4,4016.5,0.0629876]
[1734404964378,2.08831116,4017.4,4016.6,0.7992]
[1734404964626,2.08831116,4017.8,4016.7,0.06258726]
[1734404964777,2.08831116,4017.8,4016.8,0.7992]
[1734404965315,2.08831116,4017.8,4017.0,0.7992]
[1734404965611,2.08831116,4017.8,4017.1,0.0615694]
[1734404968070,0.01640985,4017.7,4017.1,0.0615694]
[1734404970074,2.08831116,4017.8,4017.1,0.0615694]
[1734404972031,2.08831116,4018.2,4017.2,0.7992]
[1734404972246,2.08831116,4018.2,4017.4,0.7992]
[1734404972459,2.08831116,4018.2,4017.6,0.7992]
[1734404972666,2.08831116,4018.2,4017.7,0.06125141]
[1734404973239,2.08831116,4018.2,4017.5,0.49003093]
[1734404973240,2.08831116,4018.2,4017.8,0.7992]
[1734404973565,2.08831116,4018.2,4017.9,0.06124132]
[1734404973910,2.08831116,4018.2,4017.8,0.7992]
[1734404974041,2.08831116,4018.2,4018.0,0.06123627]
[1734404974237,2.08831116,4018.2,4017.8,0.7992]
[1734404974470,2.08831116,4018.2,4017.9,0.06124132]
[1734404974671,2.08831116,4018.2,4017.8,0.7992]
[1734404974876,2.08831116,4018.2,4017.9,0.06124132]
[1734404975038,2.08831116,4018.2,4017.8,0.7992]
[1734404975253,2.08831116,4018.7,4017.9,0.06124132]
[1734404976364,2.08831116,4018.7,4017.8,0.7992]
[1734404976773,2.08831116,4018.7,4017.9,0.06048702]
[1734404979094,2.08831116,4018.7,4017.8,0.7992]
[1734404979458,2.08831116,4018.7,4017.9,0.06048702]
[1734404979659,2.08831116,4018.7,4018.0,0.7992]
[1734404979860,2.08831116,4018.7,4018.1,0.06047693]
[1734404980611,2.08831116,4018.7,4018.2,0.7992]
[1734404980763,2.08831116,4019.1,4018.2,0.7992]
[1734404980960,2.08831116,4019.1,4018.3,0.06046684]
[1734404981159,2.08831116,4019.1,4018.2,0.7992]
[1734404981715,0.01640985,4019.0,4018.3,0.05991944]
[1734404981864,2.08831116,4019.1,4018.3,0.05991944]
[1734404981865,2.08831116,4019.1,4018.4,0.7992]
[1734404982211,2.08831116,4019.1,4018.5,0.05990935]
[1734404983396,2.56233739,4019.1,4018.5,0.05990935]
[1734404983788,2.56233739,4019.1,4018.4,0.7992]
[1734404983986,0.01640985,4019.0,4018.4,0.7992]
[1734404984688,2.08831116,4019.1,4018.4,0.7992]
[1734404985003,4.57643116,4019.1,4018.4,0.7992]
[1734404985623,2.4882,4019.0,4018.4,0.7992]
[1734404985829,2.08831116,4018.7,4017.8,0.773]
[1734404986033,0.96253331,4018.0,4017.8,0.773]
[1734404987113,0.96253331,4018.3,4017.8,0.773]
[1734404987730,0.96253331,4018.3,4017.9,0.0595782]
[1734404988095,4.57355479,4018.7,4017.8,0.773]
[1734404988426,4.57355479,4018.7,4017.9,0.0595782]
[1734404988799,4.57355479,4018.7,4017.8,0.773]
[1734404989140,0.01215498,4018.2,4017.9,0.0595782]
[1734404989505,0.01215498,4018.2,4017.8,0.773]
[1734404990026,0.01215498,4018.2,4017.9,0.0595782]
[1734404990445,0.01215498,4018.2,4017.8,0.773]
[1734404990822,0.01215498,4018.2,4017.9,0.0595782]
[1734404991228,0.01215498,4018.2,4017.8,0.773]
[1734404991426,0.01215498,4018.2,4017.9,0.0595782]
[1734404991627,0.01215498,4018.2,4017.8,0.773]
[1734404992920,0.01215498,4018.2,4017.9,0.05974342]
[1734404993354,0.01215498,4018.2,4017.8,0.773]
[1734404994617,0.01215498,4018.2,4017.9,0.05974342]
[1734404995149,0.01215498,4018.2,4017.8,0.773]
[1734404995518,0.01215498,4018.2,4017.9,0.05974342]
[1734404995715,0.01215498,4018.2,4017.8,0.773]
[1734404996070,0.01215498,4018.2,4017.9,0.05974342]
[1734404996424,0.01215498,4018.2,4017.8,0.773]
[1734404997131,0.01215498,4018.2,4017.9,0.05974342]
[1734404997544,0.01215498,4018.2,4017.8,0.773]
[1734404997936,0.01215498,4018.2,4017.9,0.05974342]
[1734404998461,0.01215498,4018.2,4017.8,0.773]
[1734404999124,0.01215498,4018.2,4017.9,0.05991896]
[1734404999328,0.01215498,4018.2,4017.8,0.773]
[1734405000232,0.01215498,4018.2,4017.9,0.05991896]
[1734405000640,0.01215498,4018.2,4017.8,0.773]
[1734405000977,0.01215498,4018.2,4017.9,0.05991896]
[1734405001323,0.01215498,4018.2,4017.8,0.773]
[1734405002029,0.02856483,4018.2,4017.9,0.05989989]
[1734405002338,0.01215498,4018.2,4017.5,0.7611]
[1734405002529,0.01215498,4018.2,4017.8,0.33643973]
[1734405002738,0.01215498,4018.2,4017.9,0.7611]
[1734405002937,0.01215498,4018.2,4017.9,0.82104795]
[1734405005584,0.01215498,4018.2,4017.9,1.15748768]
[1734405005789,0.01215498,4018.2,4018.0,1.09753973]
[1734405006019,0.01215498,4018.2,4018.1,0.91072197]
[1734405006219,0.01215498,4018.2,4018.1,1.30711863]
[1734405006420,0.01215498,4018.2,4018.1,1.64585063]
[1734405007124,2.89946479,4019.7,4018.1,0.5483109]
[1734405007269,2.89946479,4019.7,4018.3,0.7611]
[1734405007471,2.89946479,4019.7,4018.4,0.73508969]
[1734405007711,2.08516479,4019.7,4018.5,0.7611]
[1734405007917,1.03782629,4020.1,4018.6,1.58294359]
[1734405007918,2.89946479,4020.1,4018.6,1.58294359]
[1734405008123,0.9616525,4019.5,4018.7,0.7611]
[1734405008293,0.9616525,4019.5,4018.8,0.2090821]
[1734405010373,0.9616525,4019.5,4018.8,0.54552183]
[1734405011890,0.9616525,4018.9,4018.8,0.05946414]
[1734405012127,0.9616525,4018.9,4018.4,0.7611]
[1734405012295,0.9616525,4018.9,4018.5,0.05683667]
[1734405012480,0.9616525,4018.9,4018.4,0.7611]
[1734405012677,0.9616525,4018.9,4018.5,0.05486917]
[1734405012889,0.01640985,4018.8,4018.4,0.7611]
[1734405013105,0.9616525,4018.9,4018.5,0.05485902]
[1734405013336,0.9616525,4018.9,4018.4,0.7611]
[1734405013503,0.9616525,4018.9,4018.6,0.05485398]
[1734405013707,0.9616525,4018.9,4018.4,0.7611]
[1734405014020,0.9616525,4018.9,4018.5,0.05485902]
[1734405014404,0.9616525,4018.9,4018.4,0.7611]
[1734405014605,0.9616525,4018.9,4018.6,0.05485398]
[1734405014803,0.9616525,4018.9,4018.4,0.7611]
[1734405015323,0.9616525,4018.6,4018.5,0.05485902]
[1734405015519,0.9616525,4018.6,4018.1,0.7802]
[1734405015722,0.9616525,4018.6,4018.2,0.05487415]
[1734405016840,0.9616525,4018.6,4018.2,0.39131388]
[1734405019953,0.9616525,4018.3,4018.2,0.05487415]
[1734405020454,0.9616525,4018.3,4017.8,0.7719]
[1734405021514,0.9616525,4018.3,4017.9,0.33643973]
[1734405022258,0.9616525,4018.6,4017.9,0.67517173]
[1734405023114,0.9616525,4018.6,4018.0,0.05484894]
[1734405024101,1.14094775,4018.6,4018.0,0.05484894]
[1734405025325,0.9616525,4018.6,4018.0,0.05484894]
[1734405025565,0.9616525,4018.6,4018.0,0.39128867]
[1734405031978,3.31956,4018.9,4018.0,0.39128867]
[1734405031979,0.9616525,4018.3,4018.0,0.05484894]
[1734405032147,0.9616525,4018.3,4017.8,0.7719]
[1734405032334,0.9616525,4018.3,4017.9,0.08640515]
[1734405032541,0.9616525,4018.0,4017.5,1.15313973]
[1734405032780,0.01640985,4017.9,4017.6,0.08709821]
[1734405033283,0.9616525,4018.0,4017.6,0.08709821]
[1734405034675,0.9616525,4017.7,4017.6,0.08709821]
[1734405034839,1.7215525,4017.7,4017.6,0.08709821]
[1734405035190,1.7215525,4017.7,4016.6,0.8167]
[1734405035409,1.7215525,4017.7,4017.6,0.08361142]
[1734405035539,1.7215525,4017.7,4016.6,1.13158139]
[1734405035895,0.7599,4017.7,4016.7,0.08366377]
[1734405036185,0.9616525,4017.9,4016.8,0.8167]
[1734405036337,0.9616525,4017.9,4017.0,0.8167]
[1734405036538,0.9616525,4017.9,4017.0,1.47031339]
[1734405036750,0.9616525,4017.9,4017.1,0.08388808]
[1734405043820,0.9616525,4017.6,4017.1,0.08388808]
[1734405046001,0.97806235,4017.6,4017.1,0.08388808]
[1734405046894,0.9616525,4017.6,4017.1,0.08388808]
[1734405048420,0.01640985,4017.5,4017.1,0.08388808]
[1734405049035,0.9616525,4017.6,4017.1,0.08388808]
[1734405049206,0.9616525,4017.3,4017.1,0.08388808]
[1734405049602,0.9616525,4017.3,4016.6,0.7739]
[1734405049802,0.8279,4017.4,4016.6,0.7739]
[1734405049803,0.9616525,4017.0,4016.6,0.7739]
[1734405050051,0.9616525,4017.0,4016.4,0.65361339]
[1734405051755,1.03782629,4018.0,4016.5,1.112632]
[1734405051756,0.9616525,4017.3,4016.5,1.112632]
[1734405051961,0.8279,4017.7,4016.6,0.14275134]
[1734405052173,0.9616525,4017.5,4016.6,0.14275134]
[1734405052452,0.01640985,4017.4,4016.6,0.14275134]
[1734405052654,0.9616525,4017.2,4016.6,0.14275134]
[1734405056175,0.9616525,4016.9,4016.5,1.42751339]
[1734405056378,0.9616525,4016.9,4016.5,0.7739]
[1734405057863,0.9616525,4016.9,4016.2,0.7739]
[1734405058192,0.9616525,4016.9,4016.2,1.08878139]
[1734405060170,0.01640985,4016.8,4016.2,1.08878139]
[1734405060552,0.9616525,4016.9,4016.2,1.08878139]
[1734405062094,0.8068,4017.7,4016.4,0.7946]
[1734405062301,0.8068,4017.7,4016.6,0.7946]
[1734405062302,0.9616525,4017.5,4016.6,0.7946]
[1734405062588,0.9616525,4017.5,4016.7,0.73337013]
[1734405062795,0.9616525,4017.5,4016.8,0.15279701]
[1734405062953,0.9616525,4017.5,4016.8,0.23295991]
[1734405064854,0.82320985,4017.7,4016.8,0.23295991]
[1734405064855,0.9616525,4017.2,4016.8,0.23295991]
[1734405068290,0.9616525,4016.9,4016.8,0.0801629]
[1734405068688,0.9616525,4016.9,4016.6,0.7946]
[1734405069017,0.9616525,4016.9,4016.7,0.08014907]
[1734405071887,0.8068,4017.7,4016.7,0.08014907]
[1734405072097,0.9616525,4017.3,4016.8,1.44779673]
[1734405072427,0.9616525,4017.3,4016.9,0.08004463]
[1734405074317,0.9616525,4017.0,4016.9,0.08004463]
[1734405078039,0.9616525,4017.3,4016.9,0.08004463]
[1734405079920,0.9616525,4017.3,4016.9,0.73324136]
[1734405084858,0.9616525,4017.3,4016.9,0.39492602]
[1734405089614,0.01640985,4017.2,4016.9,0.08004463]
[1734405091311,0.9616525,4017.0,4016.9,0.08004463]
[1734405091669,0.9616525,4017.0,4016.4,1.82004162]
[1734405091918,0.9616525,4017.0,4016.9,0.07954888]
[1734405092229,0.9616525,4017.0,4016.9,0.07968802]
[1734405092372,0.9616525,4017.0,4016.5,1.34732301]
[1734405092713,0.9616525,4017.0,4016.6,2.2142322]
[1734405092912,0.9616525,4017.0,4016.7,0.85381069]
[1734405093219,0.9616525,4017.0,4016.8,0.07969384]
[1734405093622,0.9616525,4017.0,4016.5,1.34732301]
[1734405093775,0.9616525,4017.0,4016.9,0.07968802]
[1734405094112,0.9616525,4017.0,4016.6,0.73677817]
[1734405094288,0.9616525,4017.0,4016.9,0.07968802]
[1734405094816,0.9616525,4017.0,4016.6,0.73677817]
[1734405095000,0.9616525,4017.3,4016.9,0.07968802]
[1734405095320,0.9616525,4017.3,4016.7,0.7876]
[1734405095484,0.9616525,4017.3,4017.0,0.0796822]
[1734405095683,0.9616525,4017.3,4016.7,0.7876]
[1734405095877,0.9616525,4017.3,4017.1,0.07967638]
[1734405096076,0.9616525,4017.3,4016.7,0.7876]
[1734405096320,0.9616525,4017.3,4017.2,0.07967056]
[1734405096501,0.9616525,4017.3,4016.7,0.7876]
[1734405096703,0.9616525,4017.3,4017.2,0.07967056]
[1734405096894,1.16324136,4017.3,4016.7,0.7876]
[1734405097218,0.9616525,4017.1,4016.8,0.85401498]
[1734405097422,0.9616525,4017.1,4016.8,0.07969384]
[1734405097604,1.7866525,4017.1,4016.8,0.07969384]
[1734405097805,1.7866525,4017.1,4016.5,1.03244162]
[1734405098120,1.7866525,4017.1,4016.6,2.21520787]
[1734405098274,1.7866525,4017.1,4016.7,0.85420096]
[1734405098620,1.7866525,4017.1,4016.8,0.07969384]
[1734405098979,1.7866525,4017.1,4016.5,1.03244162]
[1734405099215,1.7866525,4017.1,4016.6,2.21532977]
[1734405099376,1.7866525,4017.1,4016.7,0.85424972]
[1734405099576,1.7866525,4017.1,4016.8,0.07969384]
[1734405099813,1.7866525,4017.1,4016.5,1.03244162]
[1734405100013,1.7866525,4017.1,4016.6,2.21537029]
[1734405100210,1.7866525,4017.1,4016.7,0.85426593]
[1734405100382,1.7866525,4017.1,4016.6,0.07970547]
[1734405100584,0.9616525,4016.8,4016.6,0.07970547]
[1734405100889,0.9616525,4016.8,4016.4,1.82004162]
[1734405101092,0.9616525,4016.8,4016.7,0.07989036]
[1734405101318,0.9616525,4016.8,4016.4,0.7876]
[1734405101474,0.9616525,4016.8,4016.7,0.07989036]
[1734405101676,0.9616525,4016.8,4016.4,0.7876]
[1734405101876,0.9616525,4016.8,4016.7,0.07989036]
[1734405102076,0.9616525,4016.8,4016.4,0.7876]
[1734405102315,0.9616525,4016.8,4016.7,0.08001923]
[1734405102526,0.9616525,4016.8,4016.4,0.7876]
[1734405102824,0.9616525,4016.8,4016.5,0.85452591]
[1734405102985,0.9616525,4016.8,4016.5,0.08003087]
[1734405103190,0.97806235,4016.8,4016.5,0.08003087]
[1734405103880,0.97806235,4016.8,4016.1,2.13492301]
[1734405104079,0.97806235,4016.8,4016.6,0.08002505]
[1734405104307,0.97806235,4016.8,4016.1,1.10248139]
[1734405104477,0.97806235,4016.8,4016.7,0.08001923]
[1734405104676,0.97806235,4016.8,4016.1,1.10248139]
[1734405104878,0.95505555,4016.8,4016.7,0.08001923]